bitfinex/quotes_SOLUSD_20251031
["timestamp","ask_amount","ask_price","bid_price","bid_amount"]
[1761924585413,2.09731576,189.23,189.22,0.72]
[1761924586408,2.09731576,189.23,189.22,6.0048536]
[1761924587513,2.09731576,189.25,189.22,19.21698762]
[1761924587700,2.09731576,189.25,189.23,0.72]
[1761924588419,2.09731576,189.25,189.24,5.28429507]
[1761924588927,2.09731576,189.25,189.24,6.00429507]
[1761924589718,6.71872427,189.25,189.2,6.2897354]
[1761924589896,2.09731576,189.22,189.21,0.72]
[1761924590098,2.09731576,189.23,189.21,0.72]
[1761924590722,2.09731576,189.25,189.21,0.72]
[1761924591708,2.09731576,189.23,189.22,5.2848536]
[1761924591910,2.09731576,189.23,189.22,6.0048536]
[1761924593410,2.09731576,189.23,189.21,5.28513292]
[1761924593618,0.67,189.26,189.21,6.00513292]
[1761924593925,2.09731576,189.22,189.21,6.00513292]
[1761924594822,2.09731576,189.23,189.21,6.00513292]
[1761924595431,2.09731576,189.22,189.19,1.00432314]
[1761924595614,2.09731576,189.21,189.19,5.56980982]
[1761924595814,2.09731576,189.21,189.2,0.72]
[1761924596017,0.67,189.25,189.2,0.72]
[1761924596222,2.09731576,189.21,189.2,0.72]
[1761924596417,2.09731576,189.22,189.2,0.72]
[1761924597306,2.09731576,189.22,189.21,5.28513292]
[1761924597709,2.09731576,189.23,189.21,5.96513292]
[1761924597908,2.09731576,189.22,189.21,5.96513292]
[1761924599928,2.09731576,189.23,189.21,5.96513292]
[1761924600434,2.09731576,189.23,189.22,0.68]
[1761924600631,0.69,189.22,189.19,0.68]
[1761924600829,2.09731576,189.21,189.19,0.68]
[1761924601005,2.09731576,189.2,189.17,0.1]
[1761924601202,2.09731576,189.19,189.17,0.1]
[1761924601407,0.69,189.25,189.17,6.06625046]
[1761924601408,2.09731576,189.18,189.17,6.06625046]
[1761924601618,2.09731576,189.19,189.17,6.06625046]
[1761924601828,2.09731576,189.18,189.17,0.1]
[1761924602128,2.09731576,189.2,189.17,6.06625046]
[1761924602520,0.69,189.22,189.17,6.06625046]
[1761924602521,2.09731576,189.19,189.17,6.06625046]
[1761924602828,2.09731576,189.18,189.17,0.1]
[1761924603335,6.04693673,189.18,189.17,0.1]
[1761924603827,6.73693673,189.18,189.17,0.1]
[1761924604917,6.04693673,189.18,189.17,0.1]
[1761924605305,6.04693673,189.18,189.17,6.06625046]
[1761924605306,2.09731576,189.18,189.17,6.06625046]
[1761924605508,2.09731576,189.18,189.17,0.1]
[1761924606236,2.09731576,189.18,189.17,5.38625046]
[1761924606727,2.09731576,189.18,189.17,6.06625046]
[1761924606906,2.09731576,189.18,189.17,5.38625046]
[1761924607829,2.09731576,189.18,189.17,0.1]
[1761924608030,2.78731576,189.18,189.17,0.1]
[1761924608328,6.73755464,189.18,189.17,0.1]
[1761924608539,20.41278871,189.18,189.17,0.1]
[1761924609321,29.69865081,189.18,189.14,0.1]
[1761924609534,3.27875666,189.15,189.14,0.1]
[1761924609745,7.22899554,189.15,189.14,0.1]
[1761924609940,13.20580495,189.15,189.14,0.1]
[1761924610431,7.91899554,189.15,189.14,0.1]
[1761924611044,7.91899554,189.15,189.13,0.2]
[1761924611226,7.91899554,189.14,189.13,0.2]
[1761924611941,7.22899554,189.14,189.13,0.2]
[1761924612113,3.95023888,189.14,189.13,0.88]
[1761924612318,3.96875666,189.18,189.13,0.88]
[1761924612513,107.88007428,189.25,189.14,0.68]
[1761924612514,3.94803352,189.17,189.14,0.68]
[1761924612736,0.69,189.19,189.14,0.68]
[1761924612940,3.27875666,189.15,189.13,0.88]
[1761924613471,3.27875666,189.14,189.13,0.88]
[1761924614145,3.27875666,189.16,189.13,0.88]
[1761924614332,3.27875666,189.16,189.14,0.68]
[1761924614521,0.69,189.2,189.14,0.68]
[1761924614718,3.27875666,189.16,189.14,0.68]
[1761924615144,0.69,189.2,189.14,0.68]
[1761924615339,3.27875666,189.16,189.14,0.68]
[1761924616043,3.27875666,189.17,189.14,0.68]
[1761924617146,3.27875666,189.15,189.13,0.2]
[1761924617551,3.27875666,189.15,189.14,0.68]
[1761924618044,3.27875666,189.15,189.13,0.88]
[1761924618423,0.69,189.2,189.14,0.68]
[1761924618631,3.27875666,189.16,189.14,0.68]
[1761924619728,3.27875666,189.15,189.13,0.2]
[1761924619950,3.27875666,189.15,189.13,0.88]
[1761924620230,0.69,189.18,189.13,0.88]
[1761924620448,3.27875666,189.15,189.14,0.68]
[1761924621254,3.27875666,189.15,189.13,0.2]
[1761924621449,3.27875666,189.14,189.13,0.88]
[1761924622430,3.27875666,189.16,189.13,0.88]
[1761924622631,3.27875666,189.15,189.14,0.68]
[1761924623960,0.66,189.18,189.14,0.68]
[1761924624136,3.27875666,189.16,189.14,0.68]
[1761924624452,3.27875666,189.16,189.13,0.88]
[1761924624636,3.27875666,189.16,189.14,0.68]
[1761924625042,0.66,189.22,189.14,3.95875666]
[1761924625242,3.27875666,189.17,189.15,0.28432314]
[1761924625760,3.27875666,189.17,189.15,0.96432314]
[1761924626056,3.27875666,189.16,189.15,0.96432314]
[1761924626250,0.66,189.2,189.15,0.96432314]
[1761924626251,3.27875666,189.17,189.15,0.96432314]
[1761924627042,3.27875666,189.16,189.15,0.28432314]
[1761924627253,3.27875666,189.16,189.13,0.87]
[1761924627457,3.27875666,189.16,189.14,0.95432314]
[1761924627632,3.27875666,189.17,189.14,0.95432314]
[1761924628246,0.71,189.19,189.15,0.67]
[1761924628247,3.27875666,189.16,189.15,0.67]
[1761924628447,3.27875666,189.17,189.15,0.67]
[1761924629249,3.27875666,189.17,189.14,0.28432314]
[1761924629451,3.27875666,189.17,189.14,0.95432314]
[1761924629958,3.27875666,189.16,189.14,0.95432314]
[1761924630146,3.27875666,189.15,189.13,0.2]
[1761924630349,7.22664613,189.14,189.13,0.2]
[1761924630750,7.93656137,189.14,189.13,0.2]
[1761924636676,7.93656137,189.14,189.09,0.1]
[1761924636871,3.27875666,189.1,189.09,0.1]
[1761924637063,7.22656137,189.1,189.09,0.1]
[1761924637375,7.93656137,189.1,189.09,0.1]
[1761924638143,3.94780471,189.1,189.09,0.1]
[1761924638348,3.98875666,189.1,189.09,0.1]
[1761924638879,11.21209277,189.1,189.09,0.1]
[1761924640085,11.21209277,189.1,189.08,0.2]
[1761924640261,31.80409277,189.09,189.05,0.1]
[1761924640465,3.27875666,189.06,189.05,0.1]
[1761924640686,7.22333611,189.06,189.05,0.1]
[1761924640997,7.93333611,189.06,189.05,0.1]
[1761924641161,3.94340632,189.06,189.05,0.1]
[1761924641346,3.98875666,189.06,189.05,0.1]
[1761924641884,7.93237201,189.06,189.05,0.1]
[1761924642384,13.22169814,189.06,189.05,0.1]
[1761924643685,18.79705748,189.06,189.05,0.1]
[1761924644180,18.79705748,189.06,188.94,0.1]
[1761924644181,3.27875666,188.99,188.94,0.1]
[1761924644381,3.27875666,188.96,188.95,0.67]
[1761924644547,3.27875666,188.96,188.95,5.96214656]
[1761924644880,3.27875666,188.97,188.95,5.96214656]
[1761924645084,3.27875666,188.97,188.96,0.67]
[1761924645783,3.27875666,188.97,188.94,6.06267221]
[1761924645980,3.27875666,188.96,188.94,6.06267221]
[1761924646279,3.27875666,188.95,188.94,0.1]
[1761924646690,3.27875666,188.95,188.94,0.77]
[1761924646869,3.27875666,188.95,188.94,0.1]
[1761924647178,3.27875666,188.95,188.94,6.0626855]
[1761924647806,3.27875666,188.95,188.94,4.8926855]
[1761924647972,3.27875666,188.95,188.94,5.5626855]
[1761924648175,3.27875666,188.95,188.92,5.29324581]
[1761924648382,3.27875666,188.95,188.92,19.19636035]
[1761924648601,3.27875666,188.96,188.93,0.67]
[1761924649304,3.27875666,188.97,188.93,0.67]
[1761924649874,0.71,189.01,188.93,4.2330798]
[1761924650105,25.88217802,189.03,188.93,4.2330798]
[1761924650106,3.27875666,188.99,188.93,0.95432314]
[1761924650280,3.27875666,188.99,188.94,0.67]
[1761924650482,3.27875666,188.99,188.95,5.29240539]
[1761924650680,3.27875666,189.01,188.96,3.5630798]
[1761924650883,3.27875666,189.01,188.96,4.2330798]
[1761924651181,5.99990473,189.04,188.95,18.52341888]
[1761924651182,3.27875666,188.99,188.95,18.52341888]
[1761924651515,3.27875666,189.0,188.96,0.67]
[1761924652001,3.27875666,189.0,188.96,0.95432314]
[1761924652197,19.19070383,189.06,188.98,3.5630798]
[1761924652198,0.71,189.06,188.98,3.5630798]
[1761924652419,102.1,189.14,189.01,0.67]
[1761924652420,0.71,189.11,189.01,0.67]
[1761924652578,15.89782994,189.1,189.03,5.29016558]
[1761924652781,3.27875666,189.07,189.03,5.29016558]
[1761924653009,3.27875666,189.07,189.03,5.96016558]
[1761924653176,3.27875666,189.06,189.03,5.96016558]
[1761924653376,0.71,189.09,189.03,5.96016558]
[1761924653584,3.27875666,189.06,189.04,0.67]
[1761924654579,3.27875666,189.06,189.03,0.67]
[1761924654805,3.27875666,189.06,189.04,0.67]
[1761924655007,3.27875666,189.07,189.04,0.67]
[1761924656181,3.27875666,189.09,189.04,0.67]
[1761924656378,16.60530293,189.13,189.04,3.94875666]
[1761924656605,16.60530293,189.13,189.05,18.51362073]
[1761924656606,3.92942751,189.12,189.05,18.51362073]
[1761924656773,3.92942751,189.12,189.06,10.07315083]
[1761924656973,15.89446078,189.15,189.07,3.27875666]
[1761924657194,3.27875666,189.13,189.07,3.94875666]
[1761924657504,3.27875666,189.13,189.08,0.67]
[1761924657716,3.27875666,189.12,189.08,0.67]
[1761924658551,39.7626915,189.18,189.08,0.67]
[1761924658552,15.89193484,189.18,189.1,3.42091823]
[1761924658803,3.27875666,189.16,189.12,10.07315083]
[1761924659004,3.27875666,189.14,189.12,0.67]
[1761924659598,3.98875666,189.18,189.12,0.67]
[1761924659599,0.71,189.18,189.12,0.67]
[1761924659805,20.592,189.2,189.11,0.67]
[1761924659806,3.27875666,189.14,189.11,0.67]
[1761924659989,3.27875666,189.13,189.11,0.67]
[1761924660194,3.27875666,189.12,189.09,18.50970436]
[1761924660413,3.27875666,189.1,189.06,23.29588239]
[1761924660716,3.27875666,189.09,189.07,0.67]
[1761924662713,0.71,189.13,189.07,0.67]
[1761924662714,3.27875666,189.08,189.07,5.95904638]
[1761924662915,3.27875666,189.08,189.07,5.28904638]
[1761924663806,5.28776744,189.12,189.06,5.28931438]
[1761924664015,3.27875666,189.07,189.06,5.28931438]
[1761924664192,3.27875666,189.07,189.05,5.95958672]
[1761924664376,3.27875666,189.07,189.05,5.28958672]
[1761924664578,3.27875666,189.07,189.05,10.07315083]
[1761924664784,3.27875666,189.08,189.06,0.67]
[1761924665007,3.27875666,189.1,189.06,0.67]
[1761924665216,3.27875666,189.14,189.09,9.78882769]
[1761924665423,0.71,189.18,189.09,9.78882769]
[1761924665596,3.27875666,189.14,189.1,0.67]
[1761924665792,3.27875666,189.13,189.1,0.67]
[1761924666212,0.71,189.18,189.1,0.67]
[1761924666530,3.27875666,189.17,189.12,0.28432314]
[1761924666683,16.60025133,189.2,189.13,18.50578966]
[1761924667023,3.27875666,189.18,189.13,19.17578966]
[1761924667206,3.27875666,189.16,189.13,19.17578966]
[1761924667723,3.27875666,189.16,189.14,0.67]
[1761924667889,3.27875666,189.17,189.14,0.67]
[1761924668094,3.27875666,189.17,189.15,5.28680941]
[1761924668515,3.27875666,189.17,189.15,5.95680941]
[1761924669019,3.27875666,189.17,189.15,5.28680941]
[1761924669437,2.09700517,189.17,189.15,5.28680941]
[1761924669594,2.09700517,189.17,189.15,5.95680941]
[1761924669914,2.09700517,189.17,189.14,5.28706464]
[1761924670094,2.09700517,189.17,189.14,5.95706464]
[1761924670497,0.71,189.22,189.15,0.67]
[1761924670694,2.09700517,189.18,189.15,0.67]
[1761924671498,0.71,189.21,189.15,0.67]
[1761924671706,2.09700517,189.19,189.15,0.67]
[1761924672312,0.71,189.21,189.16,18.50285472]
[1761924672614,2.09700517,189.23,189.17,12.170156]
[1761924672794,2.09700517,189.23,189.17,12.840156]
[1761924672995,2.09700517,189.23,189.18,0.67]
[1761924673408,2.09700517,189.22,189.18,0.67]
[1761924674425,2.09700517,189.21,189.19,5.28569163]
[1761924674635,5.28439807,189.24,189.18,5.95593079]
[1761924674636,2.09700517,189.2,189.18,5.95593079]
[1761924676211,0.71,189.23,189.18,5.95593079]
[1761924676421,2.09700517,189.2,189.18,5.95593079]
[1761924677421,2.09700517,189.19,189.18,5.95593079]
[1761924677623,0.71,189.23,189.19,5.95562087]
[1761924677812,2.09700517,189.2,189.19,5.28562087]
[1761924678823,0.71,189.23,189.18,5.28597103]
[1761924679027,2.09700517,189.2,189.18,5.28597103]
[1761924679200,2.09700517,189.2,189.18,5.95597103]
[1761924679803,2.09700517,189.19,189.16,0.67]
[1761924679997,2.09700517,189.17,189.14,9.78882769]
[1761924680219,2.09700517,189.16,189.15,0.28432314]
[1761924680510,2.09700517,189.16,189.14,15.07591661]
[1761924680843,2.80700517,189.15,189.12,9.78882769]
[1761924681003,2.09700517,189.13,189.1,15.74703498]
[1761924681200,2.09700517,189.12,189.11,10.45882769]
[1761924681433,2.09700517,189.12,189.1,18.50872553]
[1761924681631,2.09700517,189.11,189.1,28.96755322]
[1761924681799,2.09700517,189.11,189.1,15.07703498]
[1761924682006,2.09700517,189.11,189.1,9.78882769]
[1761924682217,2.09700517,189.11,189.1,9.93098926]
[1761924682417,0.71,189.15,189.1,10.74315083]
[1761924682730,2.09700517,189.12,189.1,10.74315083]
[1761924682932,2.09700517,189.12,189.11,6.00792766]
[1761924683227,2.09700517,189.13,189.11,6.00792766]
[1761924683803,2.09700517,189.13,189.11,5.28792766]
[1761924684309,2.09700517,189.12,189.11,6.00792766]
[1761924684640,2.09700517,189.21,189.14,0.28432314]
[1761924684835,0.66,189.23,189.16,18.50285472]
[1761924684836,2.09700517,189.2,189.16,18.50285472]
[1761924685012,0.66,189.23,189.16,18.50285472]
[1761924685013,2.09700517,189.21,189.16,18.50285472]
[1761924685309,0.66,189.23,189.17,0.72]
[1761924685310,2.09700517,189.2,189.17,0.72]
[1761924685510,2.09700517,189.22,189.17,0.72]
[1761924685744,2.09700517,189.21,189.17,0.72]
[1761924686304,5.28392554,189.26,189.14,5.56863171]
[1761924686624,2.09700517,189.18,189.15,10.50882769]
[1761924686824,20.592,189.23,189.15,9.78882769]
[1761924687015,2.09700517,189.2,189.16,6.00652992]
[1761924687435,2.78700517,189.2,189.16,5.97652992]
[1761924687615,2.09700517,189.19,189.16,5.28652992]
[1761924688134,20.592,189.23,189.16,5.97652992]
[1761924688339,2.09700517,189.19,189.16,5.97652992]
[1761924688628,0.69,189.22,189.16,5.97652992]
[1761924689023,0.69,189.27,189.2,2.09700517]
[1761924689335,2.09700517,189.23,189.2,0.69]
[1761924689637,2.09700517,189.23,189.18,0.28432314]
[1761924689828,2.78700517,189.23,189.18,0.97432314]
[1761924690145,2.09700517,189.23,189.18,0.97432314]
[1761924690334,0.69,189.25,189.19,0.69]
[1761924690535,2.09700517,189.23,189.19,0.69]
[1761924690917,2.09700517,189.23,189.2,5.28541226]
[1761924691441,0.69,189.25,189.2,5.28541226]
[1761924691442,2.09700517,189.24,189.21,0.69]
[1761924691846,0.69,189.27,189.21,0.69]
[1761924692021,2.09700517,189.24,189.2,18.49894291]
[1761924692228,2.09700517,189.23,189.2,18.49894291]
[1761924692543,2.09700517,189.23,189.2,5.28541226]
[1761924692720,2.78700517,189.22,189.2,5.28541226]
[1761924692923,2.09700517,189.21,189.19,5.28569163]
[1761924693331,2.09700517,189.23,189.19,18.49992071]
[1761924693848,2.09700517,189.22,189.19,18.49992071]
[1761924694846,2.78700517,189.23,189.19,18.49992071]
[1761924695045,2.78700517,189.23,189.17,10.47882769]
[1761924695251,2.09700517,189.18,189.15,9.78882769]
[1761924695421,2.09700517,189.16,189.11,10.47882769]
[1761924695743,2.09700517,189.15,189.11,0.69]
[1761924695933,2.09700517,189.15,189.11,10.47882769]
[1761924696409,2.09700517,189.15,189.12,5.28764805]
[1761924696615,2.09700517,189.15,189.12,5.97764805]
[1761924696917,0.69,189.2,189.13,0.69]
[1761924697132,2.09700517,189.18,189.13,0.97432314]
[1761924697437,2.09700517,189.18,189.14,0.69]
[1761924698441,2.09700517,189.17,189.15,5.28680941]
[1761924700543,2.09700517,189.16,189.14,9.78882769]
[1761924701750,2.09700517,189.16,189.15,5.28680941]
[1761924701946,2.09700517,189.17,189.15,5.28680941]
[1761924702148,0.69,189.19,189.15,5.28680941]
[1761924702326,2.09700517,189.17,189.15,5.28680941]
[1761924704263,2.09700517,189.16,189.15,5.28680941]
[1761924704631,2.78700517,189.16,189.14,5.28703216]
[1761924704963,2.09700517,189.15,189.14,5.28703216]
[1761924706161,2.09700517,189.16,189.12,18.50676818]
[1761924706473,2.09700517,189.19,189.14,2.09700517]
[1761924706634,0.69,189.2,189.13,12.860156]
[1761924706836,2.09700517,189.19,189.13,12.860156]
[1761924707137,2.09700517,189.18,189.13,10.76315083]
[1761924707465,2.09700517,189.18,189.14,0.69]
[1761924707647,2.09700517,189.19,189.14,2.78700517]
[1761924707844,16.32796706,189.28,189.16,10.07315083]
[1761924708157,0.69,189.25,189.19,2.09700517]
[1761924708356,3.94932177,189.24,189.2,2.78700517]
[1761924708771,2.09700517,189.27,189.21,2.78700517]
[1761924708967,3.949247,189.26,189.21,0.69]
[1761924709139,3.9506106,189.25,189.21,2.78700517]
[1761924709464,2.78700517,189.27,189.21,2.78700517]
[1761924709646,3.95061098,189.26,189.22,2.78700517]
[1761924709834,2.09700517,189.27,189.23,18.49601013]
[1761924710363,2.78700517,189.27,189.23,18.49601013]
[1761924710860,0.69,189.26,189.23,18.49601013]
[1761924711154,2.09700517,189.25,189.23,5.28457432]
[1761924711662,2.78700517,189.25,189.23,5.28457432]
[1761924712160,2.78700517,189.25,189.21,18.49796026]
[1761924712161,2.09700517,189.25,189.21,18.49796026]
[1761924712349,0.69,189.24,189.21,18.49796026]
[1761924712544,2.09700517,189.25,189.21,18.49796026]
[1761924712848,2.09700517,189.25,189.21,19.18796026]
[1761924713358,2.09700517,189.26,189.22,0.69]
[1761924713558,2.78700517,189.27,189.22,0.69]
[1761924713754,3.94914048,189.26,189.22,0.69]
[1761924713964,3.94914048,189.26,189.23,5.28457432]
[1761924714465,3.94914048,189.26,189.23,5.97457432]
[1761924714655,2.09700517,189.27,189.23,18.49601013]
[1761924714967,2.09700517,189.28,189.23,21.2830153]
[1761924715344,2.09700517,189.26,189.23,5.28457432]
[1761924715758,2.78700517,189.26,189.23,5.28457432]
[1761924715960,2.78700517,189.26,189.21,18.49796522]
[1761924715961,2.09700517,189.25,189.21,18.49796522]
[1761924716266,2.09700517,189.25,189.21,29.26111605]
[1761924716462,2.09700517,189.25,189.21,19.18796522]
[1761924717052,2.78700517,189.26,189.21,19.18796522]
[1761924717638,2.78700517,189.26,189.21,20.59497039]
[1761924717843,2.78700517,189.26,189.22,0.72]
[1761924718071,0.69,189.26,189.21,18.49796522]
[1761924718250,2.78700517,189.26,189.21,19.21796522]
[1761924718647,2.09700517,189.25,189.21,19.21796522]
[1761924719061,2.09700517,189.25,189.21,18.49796522]
[1761924719262,2.09700517,189.22,189.21,5.28513292]
[1761924719453,2.09700517,189.22,189.18,5.2859448]
[1761924719654,2.09700517,189.19,189.18,5.2859448]
[1761924719884,2.76700517,189.19,189.16,5.28652992]
[1761924720061,2.09700517,189.17,189.16,5.28652992]
[1761924720257,2.09700517,189.17,189.14,5.28708892]
[1761924720459,2.09700517,189.15,189.11,5.28792766]
[1761924720661,2.09700517,189.12,189.11,5.28792766]
[1761924720887,2.09700517,189.13,189.11,5.28792766]
[1761924721888,2.09700517,189.13,189.1,18.00867635]
[1761924722455,2.09700517,189.12,189.1,18.00867635]
[1761924722760,2.09700517,189.11,189.1,27.79750404]
[1761924723061,2.09700517,189.11,189.1,28.08182718]
[1761924723282,0.67,189.15,189.1,28.08182718]
[1761924723482,2.09700517,189.12,189.1,28.08182718]
[1761924723901,2.09700517,189.13,189.1,28.08182718]
[1761924724056,2.09700517,189.12,189.1,28.08182718]
[1761924724861,2.09700517,189.11,189.1,5.28820729]
[1761924725490,0.67,189.14,189.1,18.50872553]
[1761924725709,2.09700517,189.13,189.1,18.50872553]
[1761924725988,2.09700517,189.14,189.12,5.28764805]
[1761924726389,2.09700517,189.15,189.12,19.22676818]
[1761924726685,2.09700517,189.15,189.12,18.50676818]
[1761924727273,2.09700517,189.14,189.12,5.28764805]
[1761924727599,2.09700517,189.13,189.09,5.57263532]
[1761924727756,2.09700517,189.1,189.09,5.28831218]
[1761924727960,2.09700517,189.1,189.08,5.28876665]
[1761924728157,2.09700517,189.11,189.08,18.51068329]
[1761924728786,2.09700517,189.12,189.08,19.23068329]
[1761924729483,5.34236932,189.12,189.08,19.23068329]
[1761924729667,0.67,189.14,189.09,0.72]
[1761924729860,5.34236932,189.13,189.09,0.72]
[1761924730079,5.34236932,189.14,189.1,9.78882769]
[1761924730512,5.34236932,189.15,189.1,9.78882769]
[1761924731102,5.34236932,189.15,189.11,5.28792766]
[1761924731303,0.68,189.14,189.11,5.28792766]
[1761924731511,8.11678027,189.13,189.09,5.28822869]
[1761924731713,8.79678027,189.12,189.09,5.28822869]
[1761924732211,8.11678027,189.14,189.1,0.67]
[1761924732514,8.79678027,189.16,189.1,10.74315083]
[1761924733217,20.592,189.21,189.11,19.17774681]
[1761924733423,8.11678027,189.16,189.11,19.17774681]
[1761924733578,8.11678027,189.13,189.1,5.28820277]
[1761924733888,25.87717036,189.21,189.06,10.45882769]
[1761924733889,8.79678027,189.12,189.06,10.45882769]
[1761924734084,8.79678027,189.12,189.07,0.28432314]
[1761924734278,0.68,189.12,189.07,0.28432314]
[1761924734475,8.11678027,189.11,189.07,0.95432314]
[1761924734783,8.11678027,189.12,189.08,18.51068329]
[1761924734987,8.79678027,189.12,189.08,18.51068329]
[1761924735502,8.11678027,189.11,189.08,18.51068329]
[1761924735706,8.79678027,189.12,189.08,18.51068329]
[1761924736606,8.11678027,189.12,189.08,19.18068329]
[1761924736808,8.11678027,189.12,189.08,18.51068329]
[1761924737012,0.68,189.12,189.08,18.51068329]
[1761924737198,8.79678027,189.12,189.08,18.51068329]
[1761924737613,0.68,189.18,189.11,8.11678027]
[1761924737804,0.68,189.18,189.11,0.28432314]
[1761924738003,8.11678027,189.15,189.11,0.28432314]
[1761924738199,0.68,189.18,189.12,5.28764805]
[1761924738409,8.11678027,189.14,189.12,5.28764805]
[1761924738705,8.11678027,189.13,189.09,5.28848696]
[1761924738923,0.68,189.16,189.09,5.28848696]
[1761924739098,8.11678027,189.1,189.08,5.28871192]
[1761924739305,8.11678027,189.09,189.08,5.28871192]
[1761924739599,8.11678027,189.1,189.08,5.28871192]
[1761924740324,8.11678027,189.1,189.06,28.58514949]
[1761924740522,8.11678027,189.1,189.06,29.25514949]
[1761924740702,8.11678027,189.11,189.06,29.25514949]
[1761924741132,8.79678027,189.11,189.06,29.25514949]
[1761924742625,0.68,189.11,189.06,29.25514949]
[1761924742824,8.79678027,189.11,189.06,29.25514949]
[1761924743229,8.79678027,189.11,189.06,36.70192976]
[1761924743535,8.79678027,189.11,189.06,37.37192976]
[1761924743914,0.68,189.15,189.08,17.90560796]
[1761924744109,8.11678027,189.14,189.09,8.11678027]
[1761924744427,8.11678027,189.14,189.1,5.28820729]
[1761924744629,0.68,189.13,189.1,5.28820729]
[1761924744812,8.11678027,189.15,189.1,5.95820729]
[1761924745335,8.11678027,189.15,189.11,0.67]
[1761924745513,8.79678027,189.15,189.1,5.95820729]
[1761924745710,8.79678027,189.14,189.1,5.28820729]
[1761924745918,8.11678027,189.13,189.08,26.62746356]
[1761924746125,0.68,189.13,189.08,26.62746356]
[1761924746316,8.79678027,189.13,189.08,27.29746356]
[1761924747119,0.68,189.13,189.08,27.29746356]
[1761924747527,0.68,189.13,189.08,27.28746356]
[1761924747706,0.68,189.13,189.09,0.66]
[1761924747905,0.68,189.13,189.1,18.50872553]
[1761924748107,8.79678027,189.13,189.1,18.50872553]
[1761924748709,20.592,189.2,189.1,18.50872553]
[1761924748939,8.81678027,189.15,189.1,18.50872553]
[1761924749437,3.97771074,189.14,189.1,18.50872553]
[1761924750313,0.7,189.13,189.1,13.22051824]
[1761924750707,3.27771074,189.12,189.09,5.28848696]
[1761924750938,3.27771074,189.1,189.03,18.5150851]
[1761924751252,3.27771074,189.09,189.05,0.14216157]
[1761924751645,3.27771074,189.09,189.05,0.98432314]
[1761924752413,3.27771074,189.09,189.06,18.51264147]
[1761924752830,3.27771074,189.1,189.06,18.51264147]
[1761924753042,3.27771074,189.1,189.06,19.21264147]
[1761924753319,3.97771074,189.11,189.06,19.21264147]
[1761924754741,3.97771074,189.1,189.06,19.21264147]
[1761924754951,5.93976703,189.29,189.1,9.78882769]
[1761924755127,2.19999999,189.33,189.16,3.27771074]
[1761924755128,0.7,189.21,189.16,3.27771074]
[1761924755329,0.7,189.21,189.14,0.7]
[1761924755531,0.7,189.21,189.16,3.27771074]
[1761924756037,3.97771074,189.21,189.15,13.06653843]
[1761924756222,3.27771074,189.2,189.13,0.28432314]
[1761924756422,3.97771074,189.2,189.16,5.28652992]
[1761924756851,3.97771074,189.2,189.16,18.50285472]
[1761924757146,3.27771074,189.21,189.16,21.78056546]
[1761924757337,3.97771074,189.25,189.19,3.27771074]
[1761924757732,3.27771074,189.25,189.19,3.27771074]
[1761924757924,0.7,189.24,189.19,3.27771074]
[1761924758541,3.97771074,189.24,189.2,5.28541226]
[1761924758758,3.27771074,189.21,189.14,0.28432314]
[1761924759048,3.27771074,189.18,189.14,10.07315083]
[1761924759431,3.27771074,189.18,189.13,16.49613193]
[1761924759633,3.27771074,189.16,189.13,5.28736847]
[1761924760153,3.97771074,189.16,189.13,5.28736847]
[1761924760547,3.97771074,189.16,189.12,13.21903766]
[1761924761639,3.27771074,189.15,189.12,13.21903766]
[1761924763069,3.27771074,189.14,189.12,13.21903766]
[1761924763472,0.7,189.16,189.12,13.21903766]
[1761924763648,3.97771074,189.16,189.12,13.21903766]
[1761924764475,3.27771074,189.16,189.12,13.91903766]
[1761924764759,3.27771074,189.17,189.13,10.07315083]
[1761924764960,20.592,189.23,189.11,5.28792766]
[1761924764961,3.27771074,189.15,189.11,5.28792766]
[1761924765264,3.27771074,189.13,189.11,5.28792766]
[1761924765466,8.11612237,189.13,189.11,5.28792766]
[1761924765768,8.11612237,189.14,189.11,5.28792766]
[1761924766139,8.11612237,189.14,189.11,18.50774681]
[1761924767379,8.11612237,189.12,189.08,13.22154109]
[1761924767570,8.11612237,189.1,189.08,13.22154109]
[1761924767769,8.11612237,189.11,189.08,13.22154109]
[1761924767985,8.11612237,189.1,189.09,5.28848696]
[1761924768480,8.11612237,189.1,189.07,5.2888196]
[1761924768689,8.11612237,189.08,189.07,5.2888196]
[1761924768972,13.40319449,189.15,189.07,5.2888196]
[1761924769178,8.11612237,189.09,189.07,5.2888196]